fUSD/lending_fUSD_20260601
["ID","MTS","AMOUNT","RATE_DAILY","PERIOD"]
[423674774,1780294245000,-1069.20589958,0.00035509,2]
[423674776,1780294245000,-595.02813186,0.00035509,2]
[423674778,1780294245000,-300.0,0.00035509,2]
[423674781,1780294245000,-300.0,0.00035509,2]
[423674780,1780294245000,-300.0,0.00035509,2]
[423674779,1780294245000,-302.43156196,0.00035509,2]
[423674782,1780294245000,-301.20887308,0.00035509,2]
[423674784,1780294245000,-300.0,0.00035509,2]
[423674786,1780294245000,-300.0,0.00035509,2]
[423674788,1780294245000,-300.0,0.00035509,2]
[423674787,1780294245000,-300.0,0.00035509,2]
[423674777,1780294245000,-727.59512892,0.00035509,2]
[423674785,1780294245000,-300.0,0.00035509,2]
[423674832,1780294245000,-500.0,0.00035593,2]
[423674799,1780294245000,-300.0,0.00035509,2]
[423674807,1780294245000,-300.0,0.00035509,2]
[423674797,1780294245000,-951.01509113,0.00035509,2]
[423674792,1780294245000,-528.00893317,0.00035509,2]
[423674808,1780294245000,-300.0,0.00035509,2]
[423674796,1780294245000,-866.20938408,0.00035509,2]
[423674794,1780294245000,-300.0,0.00035509,2]
[423674789,1780294245000,-300.0,0.00035509,2]
[423674791,1780294245000,-344.68554568,0.00035509,2]
[423674790,1780294245000,-1264.8403207,0.00035509,2]
[423674793,1780294245000,-300.0,0.00035509,2]
[423674795,1780294245000,-300.0,0.00035509,2]
[423674862,1780294246000,-2013.9849,0.00035837,2]
[423674861,1780294246000,-502.0108,0.00035837,2]
[423674865,1780294246000,-150.0,0.00035899,2]
[423674857,1780294246000,-524.0,0.00035726,30]
[423674858,1780294246000,-150.0,0.00035739,7]
[423674860,1780294246000,-10040.2166,0.00035837,2]
[423674868,1780294246000,-169.85804362,0.00035951,2]
[423674855,1780294246000,-153.0,0.00035726,30]
[423674864,1780294246000,-350.0,0.0003589,5]
[423674863,1780294246000,-492.74419802,0.00035878,2]
[423674869,1780294246000,-400.0,0.00035951,2]
[423674870,1780294246000,-400.0,0.00035951,2]
[423674878,1780294246000,-1616.69363481,0.0003604,2]
[423674872,1780294246000,-150.0,0.00035996,7]
[423674871,1780294246000,-10040.2166,0.00035965,2]
[423674874,1780294246000,-173.0,0.00036,30]
[423674873,1780294246000,-154.0,0.00036,2]
[423674877,1780294246000,-1557.93173135,0.00036035,2]
[423674875,1780294246000,-1329.13878589,0.00036035,2]
[423674859,1780294246000,-150.0,0.00035825,7]
[423674876,1780294246000,-1373.01591125,0.00036035,2]
[423674867,1780294246000,-150.0,0.00035951,2]
[423674866,1780294246000,-150.0,0.00035911,7]
[423674843,1780294246000,-373.36,0.0003567,80]
[423674854,1780294246000,-301.0,0.00035726,30]
[423674880,1780294246000,-1222.16180916,0.0003604,2]
[423674835,1780294246000,-2000.0,0.00035616,30]
[423674838,1780294246000,-314.5,0.00035616,30]
[423674834,1780294246000,-2000.0,0.00035614,115]
[423674836,1780294246000,-160.80147869,0.00035616,30]
[423674837,1780294246000,-150.0,0.00035616,60]
[423674833,1780294246000,-871.63,0.00035593,2]
[423674839,1780294246000,-182.02,0.00035616,30]
[423674840,1780294246000,-150.0,0.00035654,7]
[423674841,1780294246000,-2000.0,0.00035668,98]
[423674842,1780294246000,-2000.0,0.00035669,80]
[423674846,1780294246000,-937.0,0.00035723,30]
[423674844,1780294246000,-535.0,0.00035681,11]
[423674849,1780294246000,-486.0,0.00035723,30]
[423674845,1780294246000,-151.0,0.00035723,30]
[423674847,1780294246000,-157.0,0.00035723,30]
[423674848,1780294246000,-163.0,0.00035723,30]
[423674852,1780294246000,-234.0,0.00035723,30]
[423674851,1780294246000,-418.0,0.00035723,30]
[423674850,1780294246000,-205.0,0.00035723,30]
[423674853,1780294246000,-240.0,0.00035726,30]
[423674856,1780294246000,-600.0,0.00035726,30]
[423674883,1780294246000,-2013.9849,0.00036093,2]
[423674891,1780294246000,-10040.2166,0.00036221,2]
[423674920,1780294246000,-535.0,0.00036748,12]
[423674910,1780294246000,-32846.0562,0.00036611,30]
[423674914,1780294246000,-150.0,0.00036682,7]
[423674919,1780294246000,-2000.0,0.00036747,12]
[423674913,1780294246000,-1327.34158843,0.00036647,2]
[423674908,1780294246000,-10040.2166,0.00036605,2]
[423674907,1780294246000,-1200.73161,0.000366,120]
[423674911,1780294246000,-2000.04,0.00036639,120]
[423674906,1780294246000,-150.0,0.00036596,7]
[423674912,1780294246000,-2033.95,0.00036639,120]
[423674916,1780294246000,-10040.2166,0.00036733,2]
[423674921,1780294246000,-373.37,0.0003676,120]
[423674931,1780294246000,-150.0,0.00036939,7]
[423674923,1780294246000,-150.0,0.00036796,7]
[423674922,1780294246000,-150.0,0.00036768,7]
[423674925,1780294246000,-8000.0,0.000368,60]
[423674932,1780294246000,-1346.014,0.00036949,2]
[423674926,1780294246000,-388.96413257,0.00036822,2]
[423674929,1780294246000,-10040.2166,0.00036861,2]
[423674927,1780294246000,-350.0,0.00036849,5]
[423674930,1780294246000,-2013.9849,0.00036861,2]
[423674892,1780294246000,-150.0,0.00036254,7]
[423674915,1780294246000,-155.95699102,0.00036713,60]
[423674918,1780294246000,-197.98680208,0.00036744,2]
[423674909,1780294246000,-2013.9849,0.00036605,2]
[423674902,1780294246000,-150.0,0.00036425,7]
[423674890,1780294246000,-535.0,0.00036214,11]
[423674879,1780294246000,-1674.4617837,0.0003604,2]
[423674882,1780294246000,-10040.2166,0.00036093,2]
[423674881,1780294246000,-150.0,0.00036082,7]
[423674886,1780294246000,-150.0,0.00036168,7]
[423674885,1780294246000,-319.7,0.00036153,30]
[423674917,1780294246000,-502.0108,0.00036733,2]
[423674889,1780294246000,-373.36,0.0003621,110]
[423674884,1780294246000,-2000.0,0.00036135,50]
[423674887,1780294246000,-2000.0,0.00036208,114]
[423674897,1780294246000,-2013.9849,0.00036349,2]
[423674888,1780294246000,-2000.0,0.00036209,110]
[423674899,1780294246000,-200.0,0.00036359,5]
[423674900,1780294246000,-31263.0,0.000364,30]
[423674896,1780294246000,-10040.2166,0.00036349,2]
[423674901,1780294246000,-177.57,0.00036411,10]
[423674898,1780294246000,-200.0,0.00036359,5]
[423674904,1780294246000,-10040.2166,0.00036477,2]
[423674895,1780294246000,-150.0,0.00036339,7]
[423674928,1780294246000,-150.0,0.00036853,7]
[423674893,1780294246000,-150.0,0.00036271,7]
[423674905,1780294246000,-150.0,0.00036511,7]
[423674903,1780294246000,-150.0,0.00036468,7]
[423674894,1780294246000,-355.03,0.000363,30]
[423675019,1780294247000,-1676.72,0.00037474,2]
[423675017,1780294247000,-150.0,0.00037453,7]
[423675015,1780294247000,-150.0,0.00037453,7]
[423675023,1780294247000,-548.42577777,0.0003748,30]
[423675012,1780294247000,-150.0,0.00037449,2]
[423675013,1780294247000,-400.0,0.00037449,2]
[423675021,1780294247000,-491.0,0.00037479,3]
[423675010,1780294247000,-160.18568747,0.00037449,2]
[423675008,1780294247000,-16615.87367539,0.00037432,2]
[423675007,1780294247000,-2519.27914425,0.00037432,2]
[423674993,1780294247000,-2109.04388504,0.000373,30]
[423675005,1780294247000,-2013.9849,0.00037373,2]
[423674991,1780294247000,-2109.04388504,0.000373,30]
[423675053,1780294247000,-1061.25331328,0.00037589,20]
[423675027,1780294247000,-33240.6068,0.00037489,2]
[423675032,1780294247000,-2000.0,0.00037499,19]
[423675034,1780294247000,-211.149415,0.000375,15]
[423675036,1780294247000,-10040.2166,0.00037501,2]
[423675040,1780294247000,-2000.0,0.00037532,2]
[423675042,1780294247000,-10000.0,0.00037532,2]
[423675052,1780294247000,-1114.24184835,0.00037589,20]
[423675046,1780294247000,-1137.6123822,0.00037589,20]
[423675050,1780294247000,-1132.52753346,0.00037589,20]
[423675044,1780294247000,-150.0,0.00037539,7]
[423675048,1780294247000,-1087.88986026,0.00037589,20]
[423675047,1780294247000,-1107.30147681,0.00037589,20]
[423674989,1780294247000,-2109.04388505,0.000373,30]
[423675025,1780294247000,-218.25,0.00037481,120]
[423674995,1780294247000,-252.20222867,0.000373,30]
[423674943,1780294247000,-2000.0,0.00036999,85]
[423675001,1780294247000,-2000.0,0.00037372,89]
[423674934,1780294247000,-752.942,0.00036949,2]
[423674947,1780294247000,-150.0,0.00037,2]
[423674949,1780294247000,-181.864,0.00037,2]
[423674953,1780294247000,-209.21103511,0.00037,30]
[423674951,1780294247000,-155.55715431,0.00037,2]
[423674955,1780294247000,-150.0,0.00037025,7]
[423674938,1780294247000,-3639.0,0.00036949,2]
[423674940,1780294247000,-10040.2166,0.00036989,2]
[423674936,1780294247000,-377.555,0.00036949,2]
[423674957,1780294247000,-150.0,0.00037059,7]
[423674959,1780294247000,-2000.0,0.000371,7]
[423674945,1780294247000,-154.0,0.00037,30]
[423674961,1780294247000,-150.0,0.00037111,7]
[423675003,1780294247000,-10040.2166,0.00037373,2]
[423674964,1780294247000,-10040.2166,0.00037117,2]
[423674976,1780294247000,-150.0,0.00037282,7]
[423674978,1780294247000,-535.0,0.00037282,13]
[423674966,1780294247000,-2013.9849,0.00037117,2]
[423674968,1780294247000,-1413.80722602,0.00037153,2]
[423674972,1780294247000,-150.0,0.00037196,7]
[423674980,1780294247000,-2000.0,0.00037299,18]
[423674982,1780294247000,-373.37,0.000373,60]
[423674970,1780294247000,-541.347739,0.00037179,120]
[423674971,1780294247000,-500.0,0.00037179,120]
[423674985,1780294247000,-237.03,0.000373,60]
[423674987,1780294247000,-355.03,0.000373,30]
[423674998,1780294247000,-26905.0,0.0003736,2]
[423675000,1780294247000,-150.0,0.00037368,7]
[423674974,1780294247000,-10040.2166,0.00037245,2]
[423675049,1780294247000,-1023.05074942,0.00037589,20]
[423675029,1780294247000,-2000.0,0.00037489,2]
[423675055,1780294247000,-253.04,0.000376,7]
[423675082,1780294247000,-940.5312,0.00037896,30]
[423675089,1780294247000,-214.0,0.00038,120]
[423675085,1780294247000,-350.0,0.00037918,6]
[423675086,1780294247000,-150.0,0.00037968,7]
[423675087,1780294247000,-1327.34158843,0.00037997,2]
[423675088,1780294247000,-2000.0,0.00037999,48]
[423675090,1780294247000,-154.0,0.00038,30]
[423675093,1780294247000,-154.0,0.00038,30]
[423675097,1780294247000,-210.58005068,0.00038077,2]
[423675095,1780294247000,-8020.0,0.00038,120]
[423675094,1780294247000,-223.93508353,0.00038,120]
[423675096,1780294247000,-150.0,0.00038053,7]
[423675103,1780294247000,-500.0,0.00038082,10]
[423675091,1780294247000,-167.0,0.00038,120]
[423675104,1780294247000,-150.0,0.00038082,60]
[423675098,1780294247000,-284.10638952,0.00038077,2]
[423675102,1780294247000,-150.0,0.00038082,60]
[423675101,1780294247000,-500.0,0.00038082,10]
[423675099,1780294247000,-158.00653203,0.00038077,3]
[423675106,1780294247000,-269.95391703,0.00038082,60]
[423675105,1780294247000,-300.96172174,0.00038082,10]
[423675108,1780294247000,-2000.0,0.00038099,33]
[423675107,1780294247000,-315.71791857,0.00038083,2]
[423675111,1780294247000,-150.0,0.00038111,7]
[423675113,1780294247000,-319.7,0.00038125,30]
[423675109,1780294247000,-253.04,0.000381,7]
[423675112,1780294247000,-706.23,0.00038122,7]
[423675110,1780294247000,-2157.4,0.000381,14]
[423675100,1780294247000,-150.0,0.00038082,60]
[423675092,1780294247000,-153.0,0.00038,120]
[423675114,1780294247000,-150.0,0.00038139,7]
[423675083,1780294247000,-253.04,0.000379,7]
[423675080,1780294247000,-500.0,0.0003786,60]
[423675054,1780294247000,-31263.0,0.000376,30]
[423675051,1780294247000,-1052.17973476,0.00037589,20]
[423675057,1780294247000,-492.74419802,0.00037615,2]
[423675066,1780294247000,-250.0,0.00037771,2]
[423675067,1780294247000,-250.0,0.00037771,2]
[423675068,1780294247000,-250.0,0.00037771,2]
[423675065,1780294247000,-250.0,0.00037771,2]
[423675056,1780294247000,-2157.4,0.000376,14]
[423675059,1780294247000,-10040.2179,0.00037629,2]
[423675064,1780294247000,-150.0,0.00037711,7]
[423675061,1780294247000,-2013.9852,0.00037629,2]
[423675060,1780294247000,-502.011,0.00037629,2]
[423675058,1780294247000,-150.0,0.00037625,7]
[423675038,1780294247000,-840519.979758,0.0003753,2]
[423675062,1780294247000,-150.0,0.00037694,2]
[423675063,1780294247000,-161.61,0.000377,30]
[423675084,1780294247000,-2157.4,0.000379,14]
[423675081,1780294247000,-150.0,0.00037882,7]
[423675078,1780294247000,-500.0,0.0003786,60]
[423675079,1780294247000,-1200.0,0.0003786,60]
[423675073,1780294247000,-2000.0,0.00037815,13]
[423675077,1780294247000,-2000.0,0.00037857,3]
[423675075,1780294247000,-373.37,0.0003784,86]
[423675071,1780294247000,-150.0,0.00037796,7]
[423675070,1780294247000,-267.5528608,0.00037771,2]
[423675074,1780294247000,-535.0,0.00037816,13]
[423675072,1780294247000,-350.0,0.00037808,5]
[423675069,1780294247000,-250.0,0.00037771,2]
[423675076,1780294247000,-150.0,0.00037848,7]
[423675156,1780294248000,-165.92,0.00038268,90]
[423675167,1780294248000,-162.380719,0.00038268,90]
[423675168,1780294248000,-518.5,0.00038268,90]
[423675166,1780294248000,-172.05904,0.00038268,90]
[423675150,1780294248000,-220.26806878,0.00038268,90]
[423675149,1780294248000,-642.94,0.00038268,90]
[423675152,1780294248000,-599.60298507,0.00038268,90]
[423675154,1780294248000,-412.89873404,0.00038268,90]
[423675147,1780294248000,-578.20924308,0.00038268,90]
[423675148,1780294248000,-160.0,0.00038268,90]
[423675151,1780294248000,-151.0,0.00038268,90]
[423675158,1780294248000,-500.0,0.00038268,90]
[423675165,1780294248000,-691.39774486,0.00038268,90]
[423675157,1780294248000,-156.587,0.00038268,90]
[423675161,1780294248000,-500.0,0.00038268,90]
[423675163,1780294248000,-200.0,0.00038268,90]
[423675159,1780294248000,-500.0,0.00038268,90]
[423675160,1780294248000,-520.0,0.00038268,90]
[423675146,1780294248000,-168.3888056,0.00038268,90]
[423675164,1780294248000,-260.287,0.00038268,90]
[423675162,1780294248000,-621.78829552,0.00038268,90]
[423675169,1780294248000,-500.0,0.00038268,90]
[423675171,1780294248000,-151.0,0.00038268,90]
[423675175,1780294248000,-151.0,0.00038268,90]
[423675174,1780294248000,-539.24,0.00038268,90]
[423675178,1780294248000,-200.0,0.00038268,90]
[423675170,1780294248000,-500.0,0.00038268,90]
[423675155,1780294248000,-666.72878,0.00038268,90]
[423675153,1780294248000,-251.0,0.00038268,90]
[423675137,1780294248000,-518.5,0.00038268,90]
[423675145,1780294248000,-620.0,0.00038268,90]
[423675172,1780294248000,-151.0,0.00038268,90]
[423675116,1780294248000,-5000.0,0.00038169,2]
[423675117,1780294248000,-5000.0,0.00038169,2]
[423675115,1780294248000,-5000.0,0.00038169,2]
[423675120,1780294248000,-250.0,0.00038169,2]
[423675118,1780294248000,-5000.0,0.00038169,2]
[423675121,1780294248000,-250.0,0.00038169,2]
[423675123,1780294248000,-250.0,0.00038169,2]
[423675124,1780294248000,-250.0,0.00038169,2]
[423675125,1780294248000,-573.522074,0.000382,34]
[423675128,1780294248000,-150.0,0.00038225,7]
[423675122,1780294248000,-250.0,0.00038169,2]
[423675127,1780294248000,-164.0,0.00038224,11]
[423675144,1780294248000,-557.5788265,0.00038268,90]
[423675119,1780294248000,-6765.06730761,0.00038169,2]
[423675129,1780294248000,-2319.0,0.00038227,11]
[423675141,1780294248000,-161.66074748,0.00038268,90]
[423675134,1780294248000,-151.0,0.00038268,90]
[423675133,1780294248000,-500.0,0.00038268,90]
[423675130,1780294248000,-1591.0,0.00038238,11]
[423675132,1780294248000,-1000.0,0.00038268,90]
[423675136,1780294248000,-1040.08160537,0.00038268,90]
[423675139,1780294248000,-151.0,0.00038268,90]
[423675140,1780294248000,-537.6845,0.00038268,90]
[423675135,1780294248000,-151.0,0.00038268,90]
[423675138,1780294248000,-156.587,0.00038268,90]
[423675143,1780294248000,-220.0,0.00038268,90]
[423675142,1780294248000,-162.380719,0.00038268,90]
[423675126,1780294248000,-1591.0,0.00038219,11]
[423675131,1780294248000,-151.0,0.00038268,90]
[423675177,1780294248000,-607.76245751,0.00038268,90]
[423675181,1780294248000,-174.65062311,0.00038268,90]
[423675207,1780294248000,-151.0,0.00038268,90]
[423675214,1780294248000,-500.0,0.00038268,90]
[423675208,1780294248000,-579.88197956,0.00038268,90]
[423675211,1780294248000,-152.0,0.00038268,90]
[423675215,1780294248000,-578.20924308,0.00038268,90]
[423675205,1780294248000,-7407.141672,0.00038268,90]
[423675212,1780294248000,-200.0,0.00038268,90]
[423675219,1780294248000,-198.97225456,0.00038268,90]
[423675220,1780294248000,-570.2302765,0.00038268,90]
[423675231,1780294248000,-773.24136889,0.00038268,90]
[423675230,1780294248000,-206.33422798,0.00038268,90]
[423675221,1780294248000,-601.3376128,0.00038268,90]
[423675223,1780294248000,-745.65223615,0.00038268,90]
[423675213,1780294248000,-719.04747942,0.00038268,90]
[423675224,1780294248000,-168.3888056,0.00038268,90]
[423675227,1780294248000,-500.0,0.00038268,90]
[423675226,1780294248000,-152.0,0.00038268,90]
[423675229,1780294248000,-7965.41053267,0.00038268,90]
[423675225,1780294248000,-260.0387702,0.00038268,90]
[423675232,1780294248000,-151.0,0.00038268,90]
[423675234,1780294248000,-151.0,0.00038268,90]
[423675236,1780294248000,-500.0,0.00038268,90]
[423675233,1780294248000,-578.20924308,0.00038268,90]
[423675235,1780294248000,-382.5037329,0.00038268,90]
[423675237,1780294248000,-8260.13072238,0.00038268,90]
[423675239,1780294248000,-174.61919141,0.00038268,90]
[423675238,1780294248000,-152.0,0.00038268,90]
[423675180,1780294248000,-6888.0,0.00038268,90]
[423675228,1780294248000,-599.60298507,0.00038268,90]
[423675209,1780294248000,-557.5788265,0.00038268,90]
[423675222,1780294248000,-151.0,0.00038268,90]
[423675217,1780294248000,-7681.20591386,0.00038268,90]
[423675210,1780294248000,-162.380719,0.00038268,90]
[423675176,1780294248000,-518.5,0.00038268,90]
[423675179,1780294248000,-178.42522448,0.00038268,90]
[423675183,1780294248000,-814.17940487,0.00038268,90]
[423675182,1780294248000,-280.18800437,0.00038268,90]
[423675184,1780294248000,-537.6845,0.00038268,90]
[423675185,1780294248000,-500.0,0.00038268,90]
[423675186,1780294248000,-277.02809826,0.00038268,90]
[423675187,1780294248000,-500.0,0.00038268,90]
[423675190,1780294248000,-518.5,0.00038268,90]
[423675188,1780294248000,-668.65185756,0.00038268,90]
[423675189,1780294248000,-151.0,0.00038268,90]
[423675192,1780294248000,-559.19188,0.00038268,90]
[423675191,1780294248000,-151.0,0.00038268,90]
[423675193,1780294248000,-185.02695778,0.00038268,90]
[423675173,1780294248000,-644.79446245,0.00038268,90]
[423675218,1780294248000,-151.0,0.00038268,90]
[423675216,1780294248000,-500.0,0.00038268,90]
[423675206,1780294248000,-537.6845,0.00038268,90]
[423675199,1780294248000,-500.0,0.00038268,90]
[423675195,1780294248000,-7142.856,0.00038268,90]
[423675196,1780294248000,-537.6845,0.00038268,90]
[423675197,1780294248000,-152.0,0.00038268,90]
[423675194,1780294248000,-156.587,0.00038268,90]
[423675200,1780294248000,-500.0,0.00038268,90]
[423675201,1780294248000,-693.39197629,0.00038268,90]
[423675202,1780294248000,-557.5788265,0.00038268,90]
[423675204,1780294248000,-151.0,0.00038268,90]
[423675198,1780294248000,-200.0,0.00038268,90]
[423675203,1780294248000,-191.87295522,0.00038268,90]
[423675283,1780294249000,-997.16350561,0.00038268,90]
[423675288,1780294249000,-355.03,0.000383,30]
[423675279,1780294249000,-152.0,0.00038268,90]
[423675280,1780294249000,-210.42352439,0.00038268,90]
[423675290,1780294249000,-6716.82739522,0.00038319,2]
[423675270,1780294249000,-152.0,0.00038268,90]
[423675277,1780294249000,-800.44602345,0.00038268,90]
[423675275,1780294249000,-927.27566594,0.00038268,90]
[423675274,1780294249000,-309.48496092,0.00038268,90]
[423675276,1780294249000,-185.65888788,0.00038268,90]
[423675273,1780294249000,-500.0,0.00038268,90]
[423675282,1780294249000,-500.0,0.00038268,90]
[423675291,1780294249000,-1969.5,0.00038329,120]
[423675281,1780294249000,-961.58486558,0.00038268,90]
[423675301,1780294249000,-151.0,0.00038356,2]
[423675285,1780294249000,-203.72737923,0.00038298,120]
[423675287,1780294249000,-2157.4,0.000383,14]
[423675289,1780294249000,-150.0,0.0003831,7]
[423675286,1780294249000,-253.04,0.000383,7]
[423675292,1780294249000,-1969.5,0.00038329,120]
[423675294,1780294249000,-2089.0,0.00038329,120]
[423675296,1780294249000,-2357.0,0.00038329,120]
[423675297,1780294249000,-535.0,0.0003835,14]
[423675295,1780294249000,-2357.0,0.00038329,120]
[423675298,1780294249000,-158.00653203,0.00038351,3]
[423675302,1780294249000,-151.0,0.00038356,2]
[423675293,1780294249000,-2421.0,0.00038329,120]
[423675300,1780294249000,-159.58099607,0.00038356,2]
[423675284,1780294249000,-553.06967674,0.00038268,90]
[423675278,1780294249000,-167.11928795,0.00038268,90]
[423675242,1780294249000,-801.85129954,0.00038268,90]
[423675272,1780294249000,-194.72792766,0.00038268,90]
[423675240,1780294249000,-500.0,0.00038268,90]
[423675241,1780294249000,-212.66221083,0.00038268,90]
[423675243,1780294249000,-623.58710447,0.00038268,90]
[423675246,1780294249000,-500.0,0.00038268,90]
[423675244,1780294249000,-151.0,0.00038268,90]
[423675247,1780294249000,-8565.75555911,0.00038268,90]
[423675304,1780294249000,-649.0,0.00038381,7]
[423675248,1780294249000,-151.0,0.00038268,90]
[423675249,1780294249000,-152.0,0.00038268,90]
[423675245,1780294249000,-599.60298507,0.00038268,90]
[423675250,1780294249000,-181.08010149,0.00038268,90]
[423675252,1780294249000,-831.51979762,0.00038268,90]
[423675254,1780294249000,-151.0,0.00038268,90]
[423675255,1780294249000,-500.0,0.00038268,90]
[423675253,1780294249000,-8882.6885148,0.00038268,90]
[423675257,1780294249000,-621.78829552,0.00038268,90]
[423675256,1780294249000,-646.65982734,0.00038268,90]
[423675260,1780294249000,-152.0,0.00038268,90]
[423675258,1780294249000,-151.0,0.00038268,90]
[423675259,1780294249000,-862.28603014,0.00038268,90]
[423675262,1780294249000,-500.0,0.00038268,90]
[423675261,1780294249000,-187.78006524,0.00038268,90]
[423675263,1780294249000,-9211.34798984,0.00038268,90]
[423675265,1780294249000,-670.58624095,0.00038268,90]
[423675264,1780294249000,-588.37750788,0.00038268,90]
[423675266,1780294249000,-151.0,0.00038268,90]
[423675267,1780294249000,-644.79446245,0.00038268,90]
[423675271,1780294249000,-330.72477928,0.00038268,90]
[423675268,1780294249000,-894.19061325,0.00038268,90]
[423675269,1780294249000,-151.0,0.00038268,90]
[423675299,1780294249000,-4340.85580096,0.00038356,2]
[423675251,1780294249000,-500.0,0.00038268,90]
[423675306,1780294249000,-16615.87367539,0.00038392,2]
[423675336,1780294249000,-322.96098436,0.00038451,10]
[423675338,1780294249000,-322.96098436,0.00038451,10]
[423675342,1780294249000,-322.96098436,0.00038451,10]
[423675340,1780294249000,-322.96098436,0.00038451,10]
[423675337,1780294249000,-322.96098436,0.00038451,10]
[423675341,1780294249000,-322.96098436,0.00038451,10]
[423675339,1780294249000,-322.96098436,0.00038451,10]
[423675346,1780294249000,-189.58,0.000385,21]
[423675347,1780294249000,-189.58,0.000385,21]
[423675349,1780294249000,-500.0,0.000385,30]
[423675348,1780294249000,-550.252196,0.000385,21]
[423675350,1780294249000,-2157.4,0.000385,14]
[423675356,1780294249000,-5000.0,0.00038566,2]
[423675358,1780294249000,-250.0,0.00038566,2]
[423675359,1780294249000,-250.0,0.00038566,2]
[423675351,1780294249000,-2319.0,0.00038536,11]
[423675354,1780294249000,-5000.0,0.00038566,2]
[423675352,1780294249000,-5000.0,0.00038566,2]
[423675357,1780294249000,-250.0,0.00038566,2]
[423675353,1780294249000,-250.0,0.00038566,2]
[423675355,1780294249000,-5000.0,0.00038566,2]
[423675361,1780294249000,-153.0,0.000386,120]
[423675362,1780294249000,-158.00653203,0.00038625,3]
[423675365,1780294249000,-1116.14198068,0.00038661,20]
[423675364,1780294249000,-150.0,0.00038653,7]
[423675367,1780294249000,-1057.24947543,0.00038661,20]
[423675360,1780294249000,-150.0,0.00038568,7]
[423675366,1780294249000,-1057.26486185,0.00038661,20]
[423675363,1780294249000,-150.0,0.00038636,7]
[423675335,1780294249000,-322.96098436,0.00038451,10]
[423675332,1780294249000,-322.96098444,0.00038451,10]
[423675303,1780294249000,-373.37,0.0003838,105]
[423675343,1780294249000,-150.0,0.00038482,7]
[423675345,1780294249000,-189.58,0.000385,21]
[423675309,1780294249000,-300.0,0.00038395,120]
[423675305,1780294249000,-2519.27914424,0.00038392,2]
[423675307,1780294249000,-500.0,0.00038395,120]
[423675313,1780294249000,-500.0,0.00038395,120]
[423675316,1780294249000,-300.0,0.00038395,120]
[423675308,1780294249000,-500.0,0.00038395,120]
[423675310,1780294249000,-500.0,0.00038395,120]
[423675311,1780294249000,-300.0,0.00038395,120]
[423675314,1780294249000,-300.0,0.00038395,120]
[423675315,1780294249000,-268.12943347,0.00038395,120]
[423675312,1780294249000,-393.89668641,0.00038395,120]
[423675318,1780294249000,-300.0,0.00038395,120]
[423675322,1780294249000,-300.0,0.00038395,120]
[423675317,1780294249000,-300.0,0.00038395,120]
[423675320,1780294249000,-300.0,0.00038395,120]
[423675321,1780294249000,-300.0,0.00038395,120]
[423675344,1780294249000,-2000.0,0.00038499,21]
[423675334,1780294249000,-322.96098436,0.00038451,10]
[423675326,1780294249000,-394.0582444,0.00038395,120]
[423675327,1780294249000,-1277.55905404,0.00038396,90]
[423675325,1780294249000,-300.0,0.00038395,120]
[423675333,1780294249000,-322.96098436,0.00038451,10]
[423675324,1780294249000,-300.0,0.00038395,120]
[423675323,1780294249000,-300.0,0.00038395,120]
[423675331,1780294249000,-150.0,0.00038439,7]
[423675319,1780294249000,-300.0,0.00038395,120]